[Event "Early-Titled-Tuesday-Blitz-December-26-2023"]
[Site "Chess.com"]
[Date "2023.12.26"]
[Round "9"]
[White "jacky72"]
[Black "HajiyevKanan"]
[Result "1-0"]
[WhiteElo "2816"]
[BlackElo "2617"]
[TimeControl "180+1"]
[EndTime "9:46:48 PST"]
[Termination "jacky72 won by checkmate"]

1. Nc3 {[%clk 0:03:00.9]} 1... d5 {[%clk 0:02:58.3]} 2. d4 {[%clk 0:02:58.7]}
2... c6 {[%clk 0:02:58.8]} 3. Bf4 {[%clk 0:02:56.6]} 3... a6 {[%clk 0:02:59.3]}
4. f3 {[%clk 0:02:55.4]} 4... Nf6 {[%clk 0:02:59.8]} 5. e4 {[%clk 0:02:55.5]}
5... b5 {[%clk 0:02:50.3]} 6. e5 {[%clk 0:02:54.2]} 6... Ng8 {[%clk 0:02:46.6]}
7. Be3 {[%clk 0:02:51.1]} 7... h5 {[%clk 0:02:39.1]} 8. Bd3 {[%clk 0:02:49.9]}
8... Nh6 {[%clk 0:02:37.6]} 9. Nge2 {[%clk 0:02:43.5]} 9... Bf5 {[%clk
0:02:33.2]} 10. O-O {[%clk 0:02:42.3]} 10... Bxd3 {[%clk 0:02:26.3]} 11. Qxd3
{[%clk 0:02:43.2]} 11... e6 {[%clk 0:02:27.1]} 12. Bxh6 {[%clk 0:02:43.3]} 12...
Rxh6 {[%clk 0:02:24.3]} 13. f4 {[%clk 0:02:43.9]} 13... g6 {[%clk 0:02:22.6]}
14. Nd1 {[%clk 0:02:44.5]} 14... c5 {[%clk 0:02:22.2]} 15. c3 {[%clk 0:02:42.2]}
15... Nc6 {[%clk 0:02:21.9]} 16. Ne3 {[%clk 0:02:41.8]} 16... Be7 {[%clk
0:02:16.1]} 17. a4 {[%clk 0:02:41.5]} 17... c4 {[%clk 0:01:54.5]} 18. Qd2 {[%clk
0:02:39.4]} 18... b4 {[%clk 0:01:54]} 19. f5 {[%clk 0:02:25.3]} 19... Bg5 {[%clk
0:01:36.3]} 20. fxe6 {[%clk 0:02:20.6]} 20... fxe6 {[%clk 0:01:31.6]} 21. Nf4
{[%clk 0:02:18.7]} 21... Bxf4 {[%clk 0:01:27.5]} 22. Rxf4 {[%clk 0:02:19.6]}
22... Qg5 {[%clk 0:01:27.9]} 23. Nxd5 {[%clk 0:02:08.3]} 23... O-O-O {[%clk
0:01:15.3]} 24. Nb6+ {[%clk 0:02:07.3]} 24... Kb8 {[%clk 0:01:08.6]} 25. Nxc4
{[%clk 0:02:07.5]} 25... Nxe5 {[%clk 0:01:02.4]} 26. Nxe5 {[%clk 0:02:01.1]}
26... Qxe5 {[%clk 0:01:00.7]} 27. Rf7 {[%clk 0:01:55.4]} 27... g5 {[%clk
0:00:43.5]} 28. Qd3 {[%clk 0:01:40.2]} 28... Qa5 {[%clk 0:00:28.9]} 29. Qg3+
{[%clk 0:01:33.6]} 29... Ka8 {[%clk 0:00:23.4]} 30. Raf1 {[%clk 0:01:28]} 30...
bxc3 {[%clk 0:00:18.4]} 31. bxc3 {[%clk 0:01:27.6]} 31... h4 {[%clk 0:00:14]}
32. Qf3+ {[%clk 0:01:24]} 32... Qd5 {[%clk 0:00:14.3]} 33. Qd3 {[%clk
0:01:24.5]} 33... e5 {[%clk 0:00:11.8]} 34. R1f6 {[%clk 0:01:18.4]} 34... Rxf6
{[%clk 0:00:10.5]} 35. Rxf6 {[%clk 0:01:19.3]} 35... Rd6 {[%clk 0:00:08.6]} 36.
Rf8+ {[%clk 0:01:15.8]} 36... Ka7 {[%clk 0:00:09]} 37. Rf5 {[%clk 0:00:52.9]}
37... Qe6 {[%clk 0:00:05.5]} 38. Qe4 {[%clk 0:00:44.8]} 38... exd4 {[%clk
0:00:05]} 39. Qxe6 {[%clk 0:00:44.6]} 39... Rxe6 {[%clk 0:00:05.7]} 40. cxd4
{[%clk 0:00:45.1]} 40... Re4 {[%clk 0:00:05.6]} 41. Rxg5 {[%clk 0:00:43.5]}
41... Rxd4 {[%clk 0:00:05.8]} 42. a5 {[%clk 0:00:43.9]} 42... Ra4 {[%clk
0:00:05.4]} 43. Rg7+ {[%clk 0:00:42.1]} 43... Kb8 {[%clk 0:00:05.5]} 44. Rh7
{[%clk 0:00:37.9]} 44... Ra1+ {[%clk 0:00:02.8]} 45. Kf2 {[%clk 0:00:37.9]}
45... Ra2+ {[%clk 0:00:03.7]} 46. Kf3 {[%clk 0:00:38.6]} 46... Ra3+ {[%clk
0:00:04.5]} 47. Kg4 {[%clk 0:00:39.3]} 47... h3 {[%clk 0:00:05.2]} 48. Rxh3
{[%clk 0:00:38.3]} 48... Rxa5 {[%clk 0:00:06]} 49. Rb3+ {[%clk 0:00:35.2]} 49...
Kc7 {[%clk 0:00:05.9]} 50. h4 {[%clk 0:00:35.7]} 50... Rb5 {[%clk 0:00:06.4]}
51. Ra3 {[%clk 0:00:34.1]} 51... a5 {[%clk 0:00:06.6]} 52. h5 {[%clk 0:00:34.4]}
52... Kd6 {[%clk 0:00:05.3]} 53. h6 {[%clk 0:00:33.7]} 53... Ke7 {[%clk
0:00:05.5]} 54. Rf3 {[%clk 0:00:31.9]} 54... Rb4+ {[%clk 0:00:04.4]} 55. Kh5
{[%clk 0:00:31.9]} 55... Rb5+ {[%clk 0:00:04.3]} 56. Kg6 {[%clk 0:00:31.3]}
56... Rb2 {[%clk 0:00:05.2]} 57. g4 {[%clk 0:00:30.7]} 57... Rh2 {[%clk
0:00:05.1]} 58. g5 {[%clk 0:00:30.3]} 58... Kd6 {[%clk 0:00:05.6]} 59. h7 {[%clk
0:00:30.3]} 59... Kc5 {[%clk 0:00:05.2]} 60. Kg7 {[%clk 0:00:30.6]} 60... Kb4
{[%clk 0:00:05]} 61. g6 {[%clk 0:00:30.8]} 61... a4 {[%clk 0:00:05.8]} 62. Kg8
{[%clk 0:00:30.6]} 62... a3 {[%clk 0:00:05.2]} 63. Rxa3 {[%clk 0:00:30.5]} 63...
Kxa3 {[%clk 0:00:06.1]} 64. g7 {[%clk 0:00:31]} 64... Rb2 {[%clk 0:00:06.5]} 65.
h8=Q {[%clk 0:00:30.9]} 65... Rb8+ {[%clk 0:00:07.4]} 66. Kh7 {[%clk 0:00:31.2]}
66... Rb3 {[%clk 0:00:08.1]} 67. Qf8+ {[%clk 0:00:30.4]} 67... Kb2 {[%clk
0:00:07.8]} 68. Qf2+ {[%clk 0:00:28.7]} 68... Ka3 {[%clk 0:00:07.8]} 69. g8=Q
{[%clk 0:00:26.7]} 69... Rb7+ {[%clk 0:00:07.8]} 70. Kh8 {[%clk 0:00:23.2]}
70... Rb3 {[%clk 0:00:06.1]} 71. Qgf8+ {[%clk 0:00:20.2]} 71... Rb4 {[%clk
0:00:06.2]} 72. Q2c5 {[%clk 0:00:16.8]} 72... Ka2 {[%clk 0:00:04.2]} 73. Qxb4
{[%clk 0:00:16.8]} 73... Ka1 {[%clk 0:00:05]} 74. Qa8# {[%clk 0:00:16.8]} 1-0

[Event "Early-Titled-Tuesday-Blitz-December-26-2023"]
[Site "Chess.com"]
[Date "2023.12.26"]
[Round "9"]
[White "MetiForce"]
[Black "Msb2"]
[Result "1-0"]
[WhiteElo "2889"]
[BlackElo "2996"]
[TimeControl "180+1"]
[EndTime "9:46:58 PST"]
[Termination "MetiForce won by checkmate"]

1. d4 {[%clk 0:02:59.2]} 1... d5 {[%clk 0:03:00.3]} 2. c4 {[%clk 0:02:59.3]}
2... e6 {[%clk 0:03:00.9]} 3. Nc3 {[%clk 0:02:56.6]} 3... Bb4 {[%clk 0:03:01]}
4. Nf3 {[%clk 0:02:47.5]} 4... Nf6 {[%clk 0:03:01.2]} 5. Qa4+ {[%clk 0:02:46.4]}
5... Nc6 {[%clk 0:03:01.5]} 6. Bg5 {[%clk 0:02:46.3]} 6... dxc4 {[%clk
0:03:00.3]} 7. e3 {[%clk 0:02:46.5]} 7... Bd7 {[%clk 0:02:59.1]} 8. Bxc4 {[%clk
0:02:45.7]} 8... Nxd4 {[%clk 0:02:56.4]} 9. Qd1 {[%clk 0:02:42.5]} 9... Nxf3+
{[%clk 0:02:52.7]} 10. gxf3 {[%clk 0:02:43.4]} 10... Bc6 {[%clk 0:02:48]} 11.
Qe2 {[%clk 0:02:36.3]} 11... Qe7 {[%clk 0:02:43.8]} 12. Rc1 {[%clk 0:02:32.6]}
12... O-O-O {[%clk 0:02:40.1]} 13. a3 {[%clk 0:02:31.3]} 13... Bxc3+ {[%clk
0:02:29.1]} 14. Rxc3 {[%clk 0:02:32.2]} 14... h6 {[%clk 0:02:29.7]} 15. Bh4
{[%clk 0:02:31.2]} 15... g5 {[%clk 0:02:30]} 16. Bg3 {[%clk 0:02:31.5]} 16...
Nh5 {[%clk 0:02:30.7]} 17. Be5 {[%clk 0:02:28.1]} 17... f6 {[%clk 0:02:28.2]}
18. Bd4 {[%clk 0:02:28.4]} 18... Rxd4 {[%clk 0:02:17.4]} 19. exd4 {[%clk
0:02:27.6]} 19... Nf4 {[%clk 0:02:18.3]} 20. Qd2 {[%clk 0:02:23.7]} 20... Kb8
{[%clk 0:02:15.3]} 21. h4 {[%clk 0:02:23.4]} 21... Ng2+ {[%clk 0:02:06.7]} 22.
Kd1 {[%clk 0:02:22.4]} 22... Nxh4 {[%clk 0:02:07.6]} 23. Qe2 {[%clk 0:02:21.2]}
23... Rd8 {[%clk 0:02:03.1]} 24. Kc1 {[%clk 0:02:17.2]} 24... Rxd4 {[%clk
0:01:58.7]} 25. Qxe6 {[%clk 0:02:04.2]} 25... Qxe6 {[%clk 0:01:49.9]} 26. Bxe6
{[%clk 0:02:05.1]} 26... a5 {[%clk 0:01:50.5]} 27. Bb3 {[%clk 0:01:40]} 27...
Rf4 {[%clk 0:01:43.1]} 28. Bd1 {[%clk 0:01:39.3]} 28... h5 {[%clk 0:01:31.6]}
29. Rh3 {[%clk 0:01:23.3]} 29... a4 {[%clk 0:01:29.1]} 30. Kd2 {[%clk
0:01:20.7]} 30... Be8 {[%clk 0:01:23]} 31. Re3 {[%clk 0:01:15.9]} 31... Bd7
{[%clk 0:01:09.7]} 32. Rh1 {[%clk 0:01:14.8]} 32... Bc6 {[%clk 0:00:56.5]} 33.
Rh3 {[%clk 0:01:11.8]} 33... Nf5 {[%clk 0:00:56.8]} 34. Rxh5 {[%clk 0:00:24.6]}
34... Nxe3 {[%clk 0:00:56.9]} 35. Rh8+ {[%clk 0:00:24.4]} 35... Ka7 {[%clk
0:00:56.6]} 36. fxe3 {[%clk 0:00:25.3]} 36... Rh4 {[%clk 0:00:54.4]} 37. Rf8
{[%clk 0:00:25.5]} 37... Rh6 {[%clk 0:00:48.8]} 38. Rf7 {[%clk 0:00:24.6]} 38...
Kb6 {[%clk 0:00:49]} 39. e4 {[%clk 0:00:24.9]} 39... Bb5 {[%clk 0:00:33.5]} 40.
Ke3 {[%clk 0:00:08.4]} 40... c6 {[%clk 0:00:33.8]} 41. Kd2 {[%clk 0:00:07.3]}
41... Bc4 {[%clk 0:00:31.2]} 42. Rf8 {[%clk 0:00:06.6]} 42... Kb5 {[%clk
0:00:26.8]} 43. Kc3 {[%clk 0:00:05]} 43... Ba2 {[%clk 0:00:22.4]} 44. Ra8 {[%clk
0:00:03.5]} 44... Bb3 {[%clk 0:00:22.9]} 45. Bxb3 {[%clk 0:00:03]} 45... axb3
{[%clk 0:00:23.8]} 46. Rf8 {[%clk 0:00:03.4]} 46... Rh3 {[%clk 0:00:20.2]} 47.
Rxf6 {[%clk 0:00:03.4]} 47... g4 {[%clk 0:00:20.9]} 48. Rf5+ {[%clk 0:00:03.9]}
48... Kb6 {[%clk 0:00:21.6]} 49. Kb4 {[%clk 0:00:03.5]} 49... Rxf3 {[%clk
0:00:21]} 50. Rg5 {[%clk 0:00:03.7]} 50... g3 {[%clk 0:00:20.2]} 51. e5 {[%clk
0:00:03.6]} 51... Re3 {[%clk 0:00:18.9]} 52. e6 {[%clk 0:00:03.1]} 52... Kc7
{[%clk 0:00:17.2]} 53. Kc5 {[%clk 0:00:02.5]} 53... Rd3 {[%clk 0:00:12.3]} 54.
Rg7+ {[%clk 0:00:02.2]} 54... Kd8 {[%clk 0:00:12.6]} 55. Kb6 {[%clk 0:00:01.8]}
55... Ke8 {[%clk 0:00:10.7]} 56. Kxb7 {[%clk 0:00:01.5]} 56... c5 {[%clk
0:00:11.4]} 57. a4 {[%clk 0:00:01.8]} 57... c4 {[%clk 0:00:11.9]} 58. a5 {[%clk
0:00:02.5]} 58... c3 {[%clk 0:00:12.5]} 59. a6 {[%clk 0:00:03]} 59... Rd5 {[%clk
0:00:04.1]} 60. Rxg3 {[%clk 0:00:03]} 60... c2 {[%clk 0:00:04.1]} 61. Rc3 {[%clk
0:00:03.6]} 61... Ra5 {[%clk 0:00:02.2]} 62. a7 {[%clk 0:00:03.8]} 62... Ke7
{[%clk 0:00:03.1]} 63. a8=Q {[%clk 0:00:03.3]} 63... Rxa8 {[%clk 0:00:04]} 64.
Kxa8 {[%clk 0:00:04.1]} 64... Kxe6 {[%clk 0:00:04.9]} 65. Kb7 {[%clk 0:00:04.8]}
65... Kd5 {[%clk 0:00:05.8]} 66. Kb6 {[%clk 0:00:05.4]} 66... Kd4 {[%clk
0:00:06.7]} 67. Kb5 {[%clk 0:00:06]} 67... Kd5 {[%clk 0:00:07.4]} 68. Kb4 {[%clk
0:00:06.5]} 68... Ke4 {[%clk 0:00:08.3]} 69. Kxb3 {[%clk 0:00:07.1]} 69... Ke5
{[%clk 0:00:09.2]} 70. Rxc2 {[%clk 0:00:07.6]} 70... Kf4 {[%clk 0:00:10]} 71.
Rc4+ {[%clk 0:00:08.1]} 71... Kg5 {[%clk 0:00:10.9]} 72. Kc3 {[%clk 0:00:09]}
72... Kg6 {[%clk 0:00:11.5]} 73. b4 {[%clk 0:00:09.9]} 73... Kh5 {[%clk
0:00:12.4]} 74. b5 {[%clk 0:00:10.8]} 74... Kh6 {[%clk 0:00:13.3]} 75. b6 {[%clk
0:00:11.7]} 75... Kg5 {[%clk 0:00:14.2]} 76. b7 {[%clk 0:00:12.6]} 76... Kg6
{[%clk 0:00:15.1]} 77. b8=Q {[%clk 0:00:13.1]} 77... Kf5 {[%clk 0:00:16]} 78.
Qf4+ {[%clk 0:00:13.4]} 78... Ke6 {[%clk 0:00:16.4]} 79. Rc6+ {[%clk 0:00:14.1]}
79... Kd7 {[%clk 0:00:17.3]} 80. Qd6+ {[%clk 0:00:14.5]} 80... Ke8 {[%clk
0:00:18.2]} 81. Rc8+ {[%clk 0:00:14.6]} 81... Kf7 {[%clk 0:00:19.1]} 82. Rf8+
{[%clk 0:00:15.5]} 82... Kg7 {[%clk 0:00:18.7]} 83. Qf6+ {[%clk 0:00:16.4]}
83... Kh7 {[%clk 0:00:19.3]} 84. Rh8# {[%clk 0:00:17.3]} 1-0

[Event "Early-Titled-Tuesday-Blitz-December-26-2023"]
[Site "Chess.com"]
[Date "2023.12.26"]
[Round "9"]
[White "anasta10"]
[Black "SahibSinghKnight"]
[Result "1-0"]
[WhiteElo "2607"]
[BlackElo "2676"]
[TimeControl "180+1"]
[EndTime "9:47:04 PST"]
[Termination "anasta10 won by resignation"]

1. Nf3 {[%clk 0:03:00.9]} 1... d5 {[%clk 0:02:58.3]} 2. d4 {[%clk 0:03:00.9]}
2... e6 {[%clk 0:02:58.7]} 3. c4 {[%clk 0:03:01.5]} 3... Nf6 {[%clk 0:02:56.5]}
4. Nc3 {[%clk 0:03:01.3]} 4... Be7 {[%clk 0:02:51.9]} 5. cxd5 {[%clk 0:02:59.8]}
5... exd5 {[%clk 0:02:50.4]} 6. Bg5 {[%clk 0:02:59.8]} 6... O-O {[%clk
0:02:50.4]} 7. e3 {[%clk 0:02:59.8]} 7... Nbd7 {[%clk 0:02:48.9]} 8. Bd3 {[%clk
0:02:59.5]} 8... h6 {[%clk 0:02:48.7]} 9. Bh4 {[%clk 0:02:59.2]} 9... c6 {[%clk
0:02:48.4]} 10. Qc2 {[%clk 0:02:58.9]} 10... Re8 {[%clk 0:02:45.4]} 11. O-O-O
{[%clk 0:02:58.5]} 11... a5 {[%clk 0:02:40]} 12. h3 {[%clk 0:02:57.1]} 12... b5
{[%clk 0:02:38.5]} 13. Kb1 {[%clk 0:02:57.5]} 13... a4 {[%clk 0:02:36.5]} 14. g4
{[%clk 0:02:51.7]} 14... Qa5 {[%clk 0:02:22.9]} 15. Ne2 {[%clk 0:02:38.5]} 15...
c5 {[%clk 0:02:16.1]} 16. dxc5 {[%clk 0:02:20.4]} 16... Nxc5 {[%clk 0:02:15.1]}
17. Bxf6 {[%clk 0:02:09.7]} 17... gxf6 {[%clk 0:01:57.4]} 18. Nfd4 {[%clk
0:01:48.2]} 18... Bd7 {[%clk 0:01:53]} 19. Bf5 {[%clk 0:01:41.6]} 19... b4
{[%clk 0:01:15.8]} 20. Bxd7 {[%clk 0:01:24.1]} 20... Nxd7 {[%clk 0:01:16.7]} 21.
Qd2 {[%clk 0:00:59.4]} 21... Bf8 {[%clk 0:01:04]} 22. g5 {[%clk 0:00:51]} 22...
fxg5 {[%clk 0:01:01.4]} 23. h4 {[%clk 0:00:51.2]} 23... g4 {[%clk 0:00:58.8]}
24. Rdg1 {[%clk 0:00:49.8]} 24... h5 {[%clk 0:00:58.6]} 25. f3 {[%clk
0:00:48.5]} 25... Ne5 {[%clk 0:00:58.7]} 26. fxg4 {[%clk 0:00:46.5]} 26... Nc4
{[%clk 0:00:58.5]} 27. gxh5+ {[%clk 0:00:30.8]} 27... Kh8 {[%clk 0:00:58.3]} 28.
Qe1 {[%clk 0:00:24.4]} 28... Qc7 {[%clk 0:00:11.2]} 29. Qf2 {[%clk 0:00:18.5]}
29... Ra6 {[%clk 0:00:10.4]} 30. Nf4 {[%clk 0:00:16]} 30... Rxe3 {[%clk
0:00:09.3]} 31. Nxd5 {[%clk 0:00:14.3]} 31... Qe5 {[%clk 0:00:10]} 32. Nxe3
{[%clk 0:00:14.4]} 32... Qxd4 {[%clk 0:00:10.2]} 33. Ng4 {[%clk 0:00:09.9]}
33... Qd3+ {[%clk 0:00:09.8]} 34. Qc2 {[%clk 0:00:08.6]} 34... Nd2+ {[%clk
0:00:09.9]} 35. Kc1 {[%clk 0:00:09.3]} 35... Qxc2+ {[%clk 0:00:05.8]} 36. Kxc2
{[%clk 0:00:10.2]} 36... Nf3 {[%clk 0:00:06.6]} 37. Rf1 {[%clk 0:00:10.1]} 37...
Nd4+ {[%clk 0:00:07.1]} 38. Kb1 {[%clk 0:00:10.7]} 38... b3 {[%clk 0:00:07.2]}
39. Ne5 {[%clk 0:00:10.8]} 39... bxa2+ {[%clk 0:00:07]} 40. Kxa2 {[%clk
0:00:11.7]} 40... a3 {[%clk 0:00:07.4]} 41. b3 {[%clk 0:00:11.6]} 41... Re6
{[%clk 0:00:06.6]} 42. Nxf7+ {[%clk 0:00:10.8]} 42... Kg8 {[%clk 0:00:06.3]} 43.
Rhg1+ {[%clk 0:00:11.3]} 43... Bg7 {[%clk 0:00:06.9]} 44. Rg2 {[%clk 0:00:09.3]}
44... Re2+ {[%clk 0:00:02.9]} 45. Rxe2 {[%clk 0:00:09.2]} 45... Nxe2 {[%clk
0:00:03.8]} 46. h6 {[%clk 0:00:06]} 46... Bf8 {[%clk 0:00:03.5]} 47. h7+ {[%clk
0:00:04.4]} 47... Kxh7 {[%clk 0:00:02.2]} 48. Ng5+ {[%clk 0:00:05.1]} 48... Kg8
{[%clk 0:00:02.5]} 49. Ne6 {[%clk 0:00:04.5]} 49... Nc3+ {[%clk 0:00:02.3]} 50.
Ka1 {[%clk 0:00:02.9]} 50... Be7 {[%clk 0:00:02.9]} 51. h5 {[%clk 0:00:02.7]}
51... Nd5 {[%clk 0:00:01.8]} 52. Nd4 {[%clk 0:00:02.4]} 52... Ne3 {[%clk
0:00:02.7]} 53. Rg1+ {[%clk 0:00:01.5]} 53... Kh7 {[%clk 0:00:02.8]} 54. Ka2
{[%clk 0:00:02.4]} 54... Bf6 {[%clk 0:00:03.3]} 55. Nf3 {[%clk 0:00:02.7]} 55...
Nd5 {[%clk 0:00:04.2]} 56. Kxa3 {[%clk 0:00:03]} 56... Nc3 {[%clk 0:00:05.1]}
57. Rf1 {[%clk 0:00:03.5]} 57... Ne2 {[%clk 0:00:05.6]} 58. Nd2 {[%clk
0:00:03.4]} 58... Be7+ {[%clk 0:00:06.5]} 59. Ka4 {[%clk 0:00:03.6]} 59... Nc3+
{[%clk 0:00:06.7]} 60. Ka5 {[%clk 0:00:03.7]} 60... Bd8+ {[%clk 0:00:07.4]} 61.
Ka6 {[%clk 0:00:03.8]} 61... Nd5 {[%clk 0:00:08.1]} 62. Nc4 {[%clk 0:00:04.1]}
62... Nb4+ {[%clk 0:00:08]} 63. Kb7 {[%clk 0:00:04.5]} 63... Bg5 {[%clk
0:00:08.2]} 64. Rd1 {[%clk 0:00:05]} 64... Kh6 {[%clk 0:00:08.4]} 65. Rd7 {[%clk
0:00:05.1]} 65... Kxh5 {[%clk 0:00:08.7]} 66. Ne5 {[%clk 0:00:05.6]} 66... Bf4
{[%clk 0:00:08.3]} 67. Nd3 {[%clk 0:00:06.1]} 67... Nxd3 {[%clk 0:00:07.6]} 68.
Rxd3 {[%clk 0:00:07]} 68... Kg5 {[%clk 0:00:08.5]} 69. b4 {[%clk 0:00:07.5]}
69... Kf5 {[%clk 0:00:09.4]} 70. b5 {[%clk 0:00:08.1]} 70... Ke4 {[%clk
0:00:10.3]} 71. Rd7 {[%clk 0:00:08.2]} 71... Kf5 {[%clk 0:00:09.4]} 72. Kc6
{[%clk 0:00:08.6]} 72... Ke6 {[%clk 0:00:10.3]} 73. b6 {[%clk 0:00:09.3]} 73...
Bd6 {[%clk 0:00:11.2]} 74. Rxd6+ {[%clk 0:00:09.1]} 1-0

[Event "Early-Titled-Tuesday-Blitz-December-26-2023"]
[Site "Chess.com"]
[Date "2023.12.26"]
[Round "9"]
[White "artin10862"]
[Black "ahkashefi2800"]
[Result "1/2-1/2"]
[WhiteElo "2902"]
[BlackElo "2599"]
[TimeControl "180+1"]
[EndTime "9:47:23 PST"]
[Termination "Game drawn by repetition"]

1. e4 {[%clk 0:02:58.7]} 1... e5 {[%clk 0:03:00.2]} 2. Nf3 {[%clk 0:02:58.2]}
2... Nc6 {[%clk 0:03:00.5]} 3. Bb5 {[%clk 0:02:58.7]} 3... Nf6 {[%clk
0:03:00.4]} 4. O-O {[%clk 0:02:55.3]} 4... Nxe4 {[%clk 0:03:00.3]} 5. Re1 {[%clk
0:02:55.1]} 5... Nd6 {[%clk 0:03:00.3]} 6. Nxe5 {[%clk 0:02:55.6]} 6... Be7
{[%clk 0:02:58.8]} 7. Bd3 {[%clk 0:02:52.7]} 7... Nxe5 {[%clk 0:02:45.9]} 8.
Rxe5 {[%clk 0:02:52]} 8... O-O {[%clk 0:02:46.1]} 9. Nc3 {[%clk 0:02:50.6]} 9...
Bf6 {[%clk 0:02:45.7]} 10. Re3 {[%clk 0:02:49]} 10... Re8 {[%clk 0:02:19.4]} 11.
Nd5 {[%clk 0:02:09.1]} 11... Rxe3 {[%clk 0:02:15.8]} 12. Nxf6+ {[%clk
0:01:59.2]} 12... Qxf6 {[%clk 0:02:14.2]} 13. dxe3 {[%clk 0:01:59.8]} 13... b6
{[%clk 0:02:12]} 14. Qe2 {[%clk 0:01:07.6]} 14... Bb7 {[%clk 0:02:11.7]} 15. f3
{[%clk 0:01:07.6]} 15... Re8 {[%clk 0:02:06]} 16. a4 {[%clk 0:01:03.9]} 16... a5
{[%clk 0:02:04.3]} 17. e4 {[%clk 0:01:00.3]} 17... Nf5 {[%clk 0:01:58.8]} 18.
Qf2 {[%clk 0:00:55.8]} 18... Ne7 {[%clk 0:01:56.2]} 19. c4 {[%clk 0:00:38.4]}
19... Ng6 {[%clk 0:01:51.2]} 20. Bd2 {[%clk 0:00:33.3]} 20... d6 {[%clk
0:01:48.5]} 21. Bc3 {[%clk 0:00:33.2]} 21... Qg5 {[%clk 0:01:48.2]} 22. Kh1
{[%clk 0:00:30.1]} 22... Bc6 {[%clk 0:01:45.4]} 23. b3 {[%clk 0:00:29.7]} 23...
Nf4 {[%clk 0:01:20.2]} 24. Bf1 {[%clk 0:00:21.6]} 24... f5 {[%clk 0:01:13.7]}
25. exf5 {[%clk 0:00:18.7]} 25... Qxf5 {[%clk 0:01:13]} 26. Re1 {[%clk
0:00:17.4]} 26... Rxe1 {[%clk 0:01:09.4]} 27. Qxe1 {[%clk 0:00:18.3]} 27... Kf7
{[%clk 0:00:57.5]} 28. Qe3 {[%clk 0:00:15.3]} 28... Ne6 {[%clk 0:00:40.8]} 29.
Bd3 {[%clk 0:00:12.9]} 29... Qf4 {[%clk 0:00:31.9]} 30. Qxf4+ {[%clk 0:00:09.1]}
30... Nxf4 {[%clk 0:00:32.2]} 31. Bf1 {[%clk 0:00:07.5]} 31... Ne6 {[%clk
0:00:29.8]} 32. Bd3 {[%clk 0:00:07.5]} 32... Nc5 {[%clk 0:00:28.7]} 33. Bc2
{[%clk 0:00:07.8]} 33... g6 {[%clk 0:00:24.5]} 34. Bd4 {[%clk 0:00:06.9]} 34...
Ne6 {[%clk 0:00:24.4]} 35. Be3 {[%clk 0:00:07.2]} 35... Bd7 {[%clk 0:00:24.6]}
36. Kg1 {[%clk 0:00:07.6]} 36... Nd8 {[%clk 0:00:24.8]} 37. Kf2 {[%clk
0:00:08.1]} 37... Bf5 {[%clk 0:00:24.8]} 38. Bd1 {[%clk 0:00:07.5]} 38... Ne6
{[%clk 0:00:21.1]} 39. Ke1 {[%clk 0:00:07.8]} 39... Bd3 {[%clk 0:00:20.8]} 40.
Kd2 {[%clk 0:00:07.2]} 40... Bf1 {[%clk 0:00:20.6]} 41. g3 {[%clk 0:00:07.3]}
41... Nc5 {[%clk 0:00:17.8]} 42. Bc2 {[%clk 0:00:07.5]} 42... Bg2 {[%clk
0:00:16.8]} 43. Ke2 {[%clk 0:00:07.2]} 43... Bh3 {[%clk 0:00:13.8]} 44. Bd4
{[%clk 0:00:04.5]} 44... Bf5 {[%clk 0:00:12]} 45. Bxf5 {[%clk 0:00:04]} 45...
gxf5 {[%clk 0:00:11.7]} 46. Bxc5 {[%clk 0:00:04.3]} 46... bxc5 {[%clk 0:00:12]}
47. Ke3 {[%clk 0:00:04.3]} 47... Kf6 {[%clk 0:00:10.6]} 48. Kf4 {[%clk 0:00:04]}
48... c6 {[%clk 0:00:10.9]} 49. g4 {[%clk 0:00:04.2]} 49... fxg4 {[%clk
0:00:11.3]} 50. fxg4 {[%clk 0:00:04.5]} 50... d5 {[%clk 0:00:05.6]} 51. h4
{[%clk 0:00:03.3]} 51... d4 {[%clk 0:00:04.8]} 52. Ke4 {[%clk 0:00:03.6]} 52...
h6 {[%clk 0:00:04.7]} 53. Kf4 {[%clk 0:00:04]} 53... Ke6 {[%clk 0:00:04.8]} 54.
Ke4 {[%clk 0:00:04]} 54... Kf6 {[%clk 0:00:04.9]} 55. Kf4 {[%clk 0:00:02]} 55...
Kg6 {[%clk 0:00:04.9]} 56. Ke4 {[%clk 0:00:02.3]} 56... Kf7 {[%clk 0:00:05]} 57.
Kf4 {[%clk 0:00:02.6]} 57... Kf8 {[%clk 0:00:04.9]} 58. Ke4 {[%clk 0:00:03]}
58... Ke7 {[%clk 0:00:05]} 59. Kf4 {[%clk 0:00:03.5]} 59... Kf6 {[%clk
0:00:04.3]} 60. Ke4 {[%clk 0:00:04.1]} 60... Kg6 {[%clk 0:00:03.7]} 61. Kf4
{[%clk 0:00:04.5]} 61... Kf7 {[%clk 0:00:03.3]} 62. Ke4 {[%clk 0:00:04.9]} 62...
h5 {[%clk 0:00:03.8]} 63. g5 {[%clk 0:00:03.6]} 63... Ke6 {[%clk 0:00:03.9]} 64.
Kf4 {[%clk 0:00:03.9]} 64... Kf7 {[%clk 0:00:03.2]} 65. Ke4 {[%clk 0:00:02]}
65... Kg6 {[%clk 0:00:03.6]} 66. Kf4 {[%clk 0:00:02.2]} 66... Kg7 {[%clk
0:00:04.1]} 67. Ke4 {[%clk 0:00:02.1]} 67... Kg8 {[%clk 0:00:04.4]} 68. Kf3
{[%clk 0:00:02.3]} 68... Kf7 {[%clk 0:00:04.3]} 69. Kf4 {[%clk 0:00:02.9]} 69...
Ke6 {[%clk 0:00:04.1]} 70. Ke4 {[%clk 0:00:03.6]} 70... Ke7 {[%clk 0:00:04.3]}
71. Kf4 {[%clk 0:00:04.3]} 71... Ke8 {[%clk 0:00:02.7]} 72. Kf3 {[%clk
0:00:04.3]} 72... Kf8 {[%clk 0:00:02.9]} 73. Ke2 {[%clk 0:00:04.7]} 73... Kg8
{[%clk 0:00:03.5]} 74. Kd3 {[%clk 0:00:05.1]} 74... Kf7 {[%clk 0:00:04.3]} 75.
Ke4 {[%clk 0:00:05.5]} 1/2-1/2